[Event "Titled Tuesday Blitz March 07 Early 2023"]
[White "Arencibia Monduy, Antonio"]
[Black "Osuna Vega, Enrique"]
[WhiteFideId "3507939"]
[BlackFideId "2219549"]
[WhiteElo "2517"]
[BlackElo "2189"]
[Result "1-0"]
[Round "03"]
[TimeControl "180+2"]
[Date "2023.03.07"]
[WhiteClock "0:00:01"]
[BlackClock "0:00:01"]

1. e4 {[%clk 0:03:00]}  d6 {[%clk 0:02:59]} 2. d4 {[%clk 0:02:59]}  Nf6 {[%clk 0:02:59]} 3. Nc3 {[%clk 0:03:00]}  e5 {[%clk 0:02:59]} 4. Nf3 {[%clk 0:02:59]}  Nbd7 {[%clk 0:02:59]} 5. a4 {[%clk 0:02:53]}  Be7 {[%clk 0:02:56]} 6. Bc4 {[%clk 0:02:51]}  O-O {[%clk 0:02:56]} 7. O-O {[%clk 0:02:50]}  a5 {[%clk 0:02:55]} 8. Re1 {[%clk 0:02:49]}  c6 {[%clk 0:02:55]} 9. Bg5 {[%clk 0:02:42]}  Nb6 {[%clk 0:02:53]} 10. Bb3 {[%clk 0:02:29]}  Nfd7 {[%clk 0:02:51]} 11. Be3 {[%clk 0:02:19]}  exd4 {[%clk 0:02:44]} 12. Bxd4 {[%clk 0:02:09]}  Nc5 {[%clk 0:02:45]} 13. Bxc5 {[%clk 0:01:49]}  dxc5 {[%clk 0:02:46]} 14. Qe2 {[%clk 0:01:49]}  Qd6 {[%clk 0:02:28]} 15. e5 {[%clk 0:01:45]}  Qg6 {[%clk 0:02:27]} 16. e6 {[%clk 0:01:13]}  Bxe6 {[%clk 0:02:16]} 17. Bxe6 {[%clk 0:01:11]}  fxe6 {[%clk 0:02:16]} 18. Qxe6+ {[%clk 0:00:58]}  Qxe6 {[%clk 0:02:15]} 19. Rxe6 {[%clk 0:00:59]}  Bf6 {[%clk 0:02:14]} 20. Ne4 {[%clk 0:00:57]}  Bxb2 {[%clk 0:02:03]} 21. Rb1 {[%clk 0:00:55]}  Nxa4 {[%clk 0:02:02]} 22. Nfd2 {[%clk 0:00:22]}  Rfe8 {[%clk 0:01:54]} 23. Rd6 {[%clk 0:00:14]}  Rad8 {[%clk 0:01:25]} 24. Nc4 {[%clk 0:00:13]}  Rxd6 {[%clk 0:01:18]} 25. Nexd6 {[%clk 0:00:12]}  Re2 {[%clk 0:01:02]} 26. Nxb7 {[%clk 0:00:08]}  Rxc2 {[%clk 0:01:01]} 27. Nbxa5 {[%clk 0:00:09]}  Nc3 {[%clk 0:00:31]} 28. Re1 {[%clk 0:00:07]}  Ne2+ {[%clk 0:00:28]} 29. Kf1 {[%clk 0:00:07]}  Nd4 {[%clk 0:00:28]} 30. Nd6 {[%clk 0:00:06]}  h6 {[%clk 0:00:25]} 31. Nac4 {[%clk 0:00:05]}  Bc3 {[%clk 0:00:19]} 32. Re8+ {[%clk 0:00:04]}  Kh7 {[%clk 0:00:18]} 33. g3 {[%clk 0:00:05]}  Nb5 {[%clk 0:00:11]} 34. h4 {[%clk 0:00:04]}  Nxd6 {[%clk 0:00:11]} 35. Nxd6 {[%clk 0:00:05]}  Bd4 {[%clk 0:00:09]} 36. Rf8 {[%clk 0:00:04]}  c4 {[%clk 0:00:09]} 37. h5 {[%clk 0:00:04]}  c3 {[%clk 0:00:07]} 38. Ke1 {[%clk 0:00:04]}  c5 {[%clk 0:00:04]} 39. Nf7 {[%clk 0:00:04]}  Bxf2+ {[%clk 0:00:01]} 40. Kf1 {[%clk 0:00:04]}  g5 {[%clk 0:00:01]} 41. Ne5 {[%clk 0:00:01]} 1-0


[Site "https://www.chess.com"]

[Event "Titled Tuesday Blitz March 07 Early 2023"]
[White "Kho, Darrell"]
[Black "Lehtosaari, Mauri"]
[WhiteFideId "1019317"]
[BlackFideId "501999"]
[WhiteElo "2171"]
[BlackElo "2516"]
[Result "0-1"]
[Round "03"]
[TimeControl "180+2"]
[Date "2023.03.07"]
[WhiteClock "0:00:09"]
[BlackClock "0:00:07"]

1. e4 {[%clk 0:03:00]}  d5 {[%clk 0:02:56]} 2. exd5 {[%clk 0:03:00]}  Qxd5 {[%clk 0:02:56]} 3. Nc3 {[%clk 0:03:00]}  Qe5+ {[%clk 0:02:50]} 4. Be2 {[%clk 0:02:47]}  c6 {[%clk 0:02:50]} 5. d4 {[%clk 0:02:37]}  Qc7 {[%clk 0:02:48]} 6. Nf3 {[%clk 0:02:29]}  Bf5 {[%clk 0:02:42]} 7. O-O {[%clk 0:02:11]}  e6 {[%clk 0:02:31]} 8. Nh4 {[%clk 0:01:50]}  Bg6 {[%clk 0:02:30]} 9. g3 {[%clk 0:01:42]}  Nf6 {[%clk 0:02:27]} 10. Bf4 {[%clk 0:01:35]}  Bd6 {[%clk 0:02:26]} 11. Bxd6 {[%clk 0:01:33]}  Qxd6 {[%clk 0:02:27]} 12. Bf3 {[%clk 0:01:24]}  Nbd7 {[%clk 0:02:26]} 13. Re1 {[%clk 0:01:17]}  O-O {[%clk 0:02:24]} 14. Nxg6 {[%clk 0:01:17]}  hxg6 {[%clk 0:02:24]} 15. Ne4 {[%clk 0:01:14]}  Qb4 {[%clk 0:02:03]} 16. Rb1 {[%clk 0:00:56]}  Nxe4 {[%clk 0:01:56]} 17. Rxe4 {[%clk 0:00:42]}  Nf6 {[%clk 0:01:53]} 18. Re1 {[%clk 0:00:39]}  Rfd8 {[%clk 0:01:51]} 19. c3 {[%clk 0:00:39]}  Qa5 {[%clk 0:01:44]} 20. Qb3 {[%clk 0:00:38]}  Rab8 {[%clk 0:01:41]} 21. a3 {[%clk 0:00:37]}  Nd5 {[%clk 0:01:34]} 22. Re5 {[%clk 0:00:35]}  Qc7 {[%clk 0:01:31]} 23. Rbe1 {[%clk 0:00:34]}  a6 {[%clk 0:01:30]} 24. Qc2 {[%clk 0:00:31]}  Ne7 {[%clk 0:01:27]} 25. h4 {[%clk 0:00:30]}  Nf5 {[%clk 0:01:26]} 26. h5 {[%clk 0:00:27]}  gxh5 {[%clk 0:01:20]} 27. Bxh5 {[%clk 0:00:27]}  g6 {[%clk 0:01:20]} 28. Bg4 {[%clk 0:00:18]}  Ng7 {[%clk 0:01:14]} 29. Qd2 {[%clk 0:00:17]}  c5 {[%clk 0:00:57]} 30. Qh6 {[%clk 0:00:17]}  cxd4 {[%clk 0:00:52]} 31. Kg2 {[%clk 0:00:10]}  dxc3 {[%clk 0:00:28]} 32. Rh1 {[%clk 0:00:09]}  Kf8 {[%clk 0:00:26]} 33. Qh8+ {[%clk 0:00:05]}  Ke7 {[%clk 0:00:25]} 34. Qxg7 {[%clk 0:00:05]}  Rd6 {[%clk 0:00:15]} 35. bxc3 {[%clk 0:00:02]}  Rf8 {[%clk 0:00:11]} 36. Rhe1 {[%clk 0:00:01]}  Qd7 {[%clk 0:00:08]} 37. Rxe6+ {[%clk 0:00:01]}  Rxe6 {[%clk 0:00:08]} 38. Rxe6+ {[%clk 0:00:01]}  Qxe6 {[%clk 0:00:08]} 39. Bxe6 {[%clk 0:00:01]}  Rd8 {[%clk 0:00:07]} 40. Qh6 {[%clk 0:00:01]}  Kxe6 {[%clk 0:00:07]} 41. Qe3+ {[%clk 0:00:01]}  Kd7 {[%clk 0:00:07]} 42. Kf3 {[%clk 0:00:01]}  Re8 {[%clk 0:00:07]} 43. Qd4+ {[%clk 0:00:02]}  Kc7 {[%clk 0:00:07]} 44. g4 {[%clk 0:00:03]}  Re6 {[%clk 0:00:07]} 45. Qc4+ {[%clk 0:00:03]}  Kd7 {[%clk 0:00:06]} 46. Qd5+ {[%clk 0:00:04]}  Kc7 {[%clk 0:00:06]} 47. Qxe6 {[%clk 0:00:04]}  fxe6 {[%clk 0:00:06]} 48. Ke4 {[%clk 0:00:05]}  Kd6 {[%clk 0:00:05]} 49. g5 {[%clk 0:00:05]}  e5 {[%clk 0:00:04]} 50. c4 {[%clk 0:00:05]}  b6 {[%clk 0:00:03]} 51. a4 {[%clk 0:00:06]}  Ke6 {[%clk 0:00:01]} 52. f3 {[%clk 0:00:06]}  Kd6 {[%clk 0:00:02]} 53. f4 {[%clk 0:00:06]}  exf4 {[%clk 0:00:03]} 54. Kxf4 {[%clk 0:00:06]}  Kc5 {[%clk 0:00:02]} 55. Ke5 {[%clk 0:00:07]}  Kxc4 {[%clk 0:00:03]} 56. Kf6 {[%clk 0:00:07]}  b5 {[%clk 0:00:04]} 57. axb5 {[%clk 0:00:08]}  axb5 {[%clk 0:00:05]} 58. Kxg6 {[%clk 0:00:08]}  b4 {[%clk 0:00:05]} 59. Kh7 {[%clk 0:00:08]}  b3 {[%clk 0:00:06]} 60. g6 {[%clk 0:00:08]}  b2 {[%clk 0:00:07]} 61. g7 {[%clk 0:00:09]}  b1=Q+ {[%clk 0:00:07]} 0-1


[Site "https://www.chess.com"]

[Event "Titled Tuesday Blitz March 07 Early 2023"]
[White "lisjakzlatko1"]
[Black "Mammadzada, Gunay"]
[BlackFideId "13403729"]
[WhiteElo "2168"]
[BlackElo "2396"]
[Result "1-0"]
[Round "03"]
[TimeControl "180+2"]
[Date "2023.03.07"]
[WhiteClock "0:01:51"]
[BlackClock "0:00:02"]

1. e4 {[%clk 0:03:00]}  c5 {[%clk 0:00:21]} 2. b4 {[%clk 0:02:57]}  cxb4 {[%clk 0:00:21]} 3. Bb2 {[%clk 0:02:56]}  Nc6 {[%clk 0:00:20]} 4. d4 {[%clk 0:02:50]}  d5 {[%clk 0:00:20]} 5. exd5 {[%clk 0:02:50]}  Qxd5 {[%clk 0:00:20]} 6. c4 {[%clk 0:02:50]}  bxc3 {[%clk 0:00:19]} 7. Nxc3 {[%clk 0:02:50]}  Qxd4 {[%clk 0:00:17]} 8. Nd5 {[%clk 0:02:49]}  Qe4+ {[%clk 0:00:15]} 9. Be2 {[%clk 0:02:44]}  f6 {[%clk 0:00:02]} 10. Nc7+ {[%clk 0:02:35]}  Kf7 {[%clk 0:00:03]} 11. Nxa8 {[%clk 0:02:33]}  e6 {[%clk 0:00:04]} 12. Nc7 {[%clk 0:02:13]}  Bb4+ {[%clk 0:00:03]} 13. Kf1 {[%clk 0:02:13]}  a6 {[%clk 0:00:04]} 14. Bf3 {[%clk 0:02:07]}  Qf4 {[%clk 0:00:03]} 15. Bxc6 {[%clk 0:02:02]}  bxc6 {[%clk 0:00:04]} 16. Qd8 {[%clk 0:02:01]}  Qc4+ {[%clk 0:00:02]} 17. Ne2 {[%clk 0:01:56]}  Ne7 {[%clk 0:00:02]} 18. Qxh8 {[%clk 0:01:51]} 1-0


[Site "https://www.chess.com"]

[Event "Titled Tuesday Blitz March 07 Early 2023"]
[White "Santos Flores, Alberto"]
[Black "Fabris, Alberto"]
[WhiteFideId "3601234"]
[BlackFideId "801348"]
[WhiteElo "2235"]
[BlackElo "2145"]
[Result "1-0"]
[Round "03"]
[TimeControl "180+2"]
[Date "2023.03.07"]
[WhiteClock "0:00:19"]
[BlackClock "0:00:09"]

1. e4 {[%clk 0:03:00]}  c5 {[%clk 0:03:00]} 2. Nf3 {[%clk 0:03:00]}  d6 {[%clk 0:03:00]} 3. Bb5+ {[%clk 0:02:59]}  Nd7 {[%clk 0:02:59]} 4. d4 {[%clk 0:02:58]}  cxd4 {[%clk 0:02:59]} 5. Qxd4 {[%clk 0:02:59]}  Nf6 {[%clk 0:02:58]} 6. Nc3 {[%clk 0:02:58]}  g6 {[%clk 0:02:56]} 7. e5 {[%clk 0:02:31]}  dxe5 {[%clk 0:02:55]} 8. Nxe5 {[%clk 0:02:32]}  Bg7 {[%clk 0:02:49]} 9. Bg5 {[%clk 0:02:32]}  O-O {[%clk 0:02:46]} 10. O-O-O {[%clk 0:02:32]}  Qa5 {[%clk 0:02:22]} 11. Nc4 {[%clk 0:01:51]}  Qb4 {[%clk 0:01:55]} 12. a3 {[%clk 0:01:47]}  Qc5 {[%clk 0:01:54]} 13. Bxf6 {[%clk 0:01:26]}  Bxf6 {[%clk 0:01:48]} 14. Qxc5 {[%clk 0:01:25]}  Nxc5 {[%clk 0:01:47]} 15. Nd5 {[%clk 0:01:25]}  Bf5 {[%clk 0:01:26]} 16. Nxf6+ {[%clk 0:01:20]}  exf6 {[%clk 0:01:25]} 17. Nd6 {[%clk 0:01:19]}  Be6 {[%clk 0:01:18]} 18. b4 {[%clk 0:01:17]}  a6 {[%clk 0:01:13]} 19. Be2 {[%clk 0:01:05]}  Na4 {[%clk 0:01:06]} 20. Nxb7 {[%clk 0:01:04]}  Rfb8 {[%clk 0:00:55]} 21. Na5 {[%clk 0:01:01]}  Nc3 {[%clk 0:00:52]} 22. Rd2 {[%clk 0:01:01]}  Rc8 {[%clk 0:00:45]} 23. Bf3 {[%clk 0:01:00]}  Rab8 {[%clk 0:00:43]} 24. Kb2 {[%clk 0:00:58]}  Na4+ {[%clk 0:00:40]} 25. Kb1 {[%clk 0:00:42]}  Nc3+ {[%clk 0:00:38]} 26. Ka1 {[%clk 0:00:39]}  Rb6 {[%clk 0:00:38]} 27. Re1 {[%clk 0:00:31]}  Kg7 {[%clk 0:00:37]} 28. Re3 {[%clk 0:00:30]}  Nb5 {[%clk 0:00:37]} 29. Kb2 {[%clk 0:00:27]}  Nd6 {[%clk 0:00:35]} 30. Be2 {[%clk 0:00:25]}  f5 {[%clk 0:00:28]} 31. f3 {[%clk 0:00:25]}  f4 {[%clk 0:00:27]} 32. Rc3 {[%clk 0:00:25]}  Rxc3 {[%clk 0:00:25]} 33. Kxc3 {[%clk 0:00:26]}  Nb5+ {[%clk 0:00:24]} 34. Kb2 {[%clk 0:00:26]}  h5 {[%clk 0:00:18]} 35. c4 {[%clk 0:00:26]}  Nc7 {[%clk 0:00:16]} 36. c5 {[%clk 0:00:26]}  Rb8 {[%clk 0:00:16]} 37. Bc4 {[%clk 0:00:26]}  g5 {[%clk 0:00:14]} 38. Bxe6 {[%clk 0:00:25]}  Nxe6 {[%clk 0:00:14]} 39. Kc3 {[%clk 0:00:24]}  g4 {[%clk 0:00:14]} 40. a4 {[%clk 0:00:21]}  gxf3 {[%clk 0:00:13]} 41. gxf3 {[%clk 0:00:22]}  Ng5 {[%clk 0:00:13]} 42. Rd3 {[%clk 0:00:22]}  Re8 {[%clk 0:00:11]} 43. c6 {[%clk 0:00:21]}  Re3 {[%clk 0:00:09]} 44. Rxe3 {[%clk 0:00:20]}  fxe3 {[%clk 0:00:09]} 45. c7 {[%clk 0:00:18]}  e2 {[%clk 0:00:08]} 46. Kd2 {[%clk 0:00:18]}  Nxf3+ {[%clk 0:00:09]} 47. Kxe2 {[%clk 0:00:19]}  Nd4+ {[%clk 0:00:09]} 48. Kd3 {[%clk 0:00:19]}  Ne6 {[%clk 0:00:09]} 49. c8=Q {[%clk 0:00:19]} 1-0


[Site "https://www.chess.com"]

[Event "Titled Tuesday Blitz March 07 Early 2023"]
[White "Michalski, Olaf"]
[Black "Osmak, Yuliia"]
[WhiteFideId "1106740"]
[BlackFideId "14101602"]
[WhiteElo "2173"]
[BlackElo "2271"]
[Result "0-1"]
[Round "03"]
[TimeControl "180+2"]
[Date "2023.03.07"]
[WhiteClock "0:00:14"]
[BlackClock "0:01:53"]

1. d4 {[%clk 0:02:57]}  d5 {[%clk 0:02:57]} 2. c4 {[%clk 0:02:57]}  dxc4 {[%clk 0:02:55]} 3. Nf3 {[%clk 0:02:56]}  Nf6 {[%clk 0:02:52]} 4. e3 {[%clk 0:02:52]}  a6 {[%clk 0:02:51]} 5. a4 {[%clk 0:02:45]}  e6 {[%clk 0:02:43]} 6. Bxc4 {[%clk 0:02:44]}  c5 {[%clk 0:02:44]} 7. O-O {[%clk 0:02:39]}  Nc6 {[%clk 0:02:42]} 8. dxc5 {[%clk 0:02:06]}  Bxc5 {[%clk 0:02:43]} 9. Qxd8+ {[%clk 0:02:05]}  Kxd8 {[%clk 0:02:29]} 10. Nc3 {[%clk 0:01:40]}  Ke7 {[%clk 0:02:25]} 11. a5 {[%clk 0:01:11]}  Bb4 {[%clk 0:02:20]} 12. e4 {[%clk 0:00:32]}  Nxa5 {[%clk 0:02:12]} 13. e5 {[%clk 0:00:27]}  Nxc4 {[%clk 0:02:02]} 14. exf6+ {[%clk 0:00:25]}  gxf6 {[%clk 0:02:03]} 15. Ra4 {[%clk 0:00:21]}  a5 {[%clk 0:02:03]} 16. Ne4 {[%clk 0:00:16]}  Bd7 {[%clk 0:01:59]} 17. Ra1 {[%clk 0:00:14]}  Bc6 {[%clk 0:01:53]} 0-1


[Site "https://www.chess.com"]

[Event "Titled Tuesday Blitz March 07 Early 2023"]
[White "Hoffmann, Asa"]
[Black "EREBUNI91"]
[WhiteFideId "2001470"]
[WhiteElo "2117"]
[BlackElo "2723"]
[Result "0-1"]
[Round "03"]
[TimeControl "180+2"]
[Date "2023.03.07"]
[WhiteClock "0:00:07"]
[BlackClock "0:00:14"]

1. d4 {[%clk 0:02:57]}  Nf6 {[%clk 0:02:59]} 2. Bg5 {[%clk 0:02:56]}  e6 {[%clk 0:03:00]} 3. Nd2 {[%clk 0:02:56]}  d5 {[%clk 0:02:59]} 4. e3 {[%clk 0:02:55]}  Be7 {[%clk 0:02:59]} 5. Bd3 {[%clk 0:02:55]}  c5 {[%clk 0:02:59]} 6. c3 {[%clk 0:02:55]}  Nc6 {[%clk 0:02:59]} 7. f4 {[%clk 0:02:54]}  h6 {[%clk 0:02:59]} 8. Bh4 {[%clk 0:02:54]}  b6 {[%clk 0:02:53]} 9. Ngf3 {[%clk 0:02:53]}  Bb7 {[%clk 0:02:51]} 10. O-O {[%clk 0:02:53]}  O-O {[%clk 0:02:50]} 11. Ne5 {[%clk 0:02:53]}  Nd7 {[%clk 0:02:45]} 12. Bxe7 {[%clk 0:02:51]}  Qxe7 {[%clk 0:02:45]} 13. Qf3 {[%clk 0:02:44]}  Rac8 {[%clk 0:02:36]} 14. Rae1 {[%clk 0:02:41]}  Ndxe5 {[%clk 0:02:23]} 15. fxe5 {[%clk 0:02:41]}  f5 {[%clk 0:02:23]} 16. exf6 {[%clk 0:02:38]}  Rxf6 {[%clk 0:02:23]} 17. Qg3 {[%clk 0:02:37]}  Rcf8 {[%clk 0:02:21]} 18. Rxf6 {[%clk 0:02:35]}  Rxf6 {[%clk 0:02:22]} 19. Rf1 {[%clk 0:02:33]}  e5 {[%clk 0:02:20]} 20. Rxf6 {[%clk 0:02:17]}  Qxf6 {[%clk 0:02:21]} 21. dxc5 {[%clk 0:01:34]}  bxc5 {[%clk 0:02:19]} 22. Qg6 {[%clk 0:01:28]}  e4 {[%clk 0:02:05]} 23. Qxf6 {[%clk 0:01:27]}  gxf6 {[%clk 0:02:06]} 24. Be2 {[%clk 0:01:26]}  Kf7 {[%clk 0:02:06]} 25. Nb3 {[%clk 0:01:26]}  c4 {[%clk 0:02:01]} 26. Nd4 {[%clk 0:01:26]}  Ne5 {[%clk 0:01:54]} 27. b3 {[%clk 0:01:21]}  Ba6 {[%clk 0:01:49]} 28. Kf2 {[%clk 0:01:19]}  cxb3 {[%clk 0:01:26]} 29. axb3 {[%clk 0:01:18]}  Bd3 {[%clk 0:01:23]} 30. Bxd3 {[%clk 0:01:10]}  Nxd3+ {[%clk 0:01:24]} 31. Ke2 {[%clk 0:01:10]}  Kg6 {[%clk 0:01:19]} 32. b4 {[%clk 0:01:07]}  f5 {[%clk 0:01:17]} 33. Nb5 {[%clk 0:01:07]}  f4 {[%clk 0:00:55]} 34. Nxa7 {[%clk 0:01:06]}  Nc1+ {[%clk 0:00:54]} 35. Kd1 {[%clk 0:00:59]}  Na2 {[%clk 0:00:48]} 36. exf4 {[%clk 0:00:53]}  Nxc3+ {[%clk 0:00:47]} 37. Kd2 {[%clk 0:00:53]}  d4 {[%clk 0:00:46]} 38. Nc6 {[%clk 0:00:51]}  Nb5 {[%clk 0:00:46]} 39. g4 {[%clk 0:00:50]}  Kf6 {[%clk 0:00:43]} 40. h4 {[%clk 0:00:50]}  Ke6 {[%clk 0:00:34]} 41. g5 {[%clk 0:00:48]}  h5 {[%clk 0:00:31]} 42. g6 {[%clk 0:00:43]}  Kf6 {[%clk 0:00:29]} 43. f5 {[%clk 0:00:40]}  d3 {[%clk 0:00:29]} 44. Ne5 {[%clk 0:00:29]}  Nd6 {[%clk 0:00:22]} 45. Nxd3 {[%clk 0:00:23]}  exd3 {[%clk 0:00:20]} 46. Kxd3 {[%clk 0:00:23]}  Nxf5 {[%clk 0:00:21]} 47. b5 {[%clk 0:00:22]}  Kxg6 {[%clk 0:00:21]} 48. b6 {[%clk 0:00:22]}  Nd6 {[%clk 0:00:20]} 49. Kd4 {[%clk 0:00:20]}  Kf5 {[%clk 0:00:20]} 50. Kd5 {[%clk 0:00:17]}  Nb7 {[%clk 0:00:20]} 51. Kc6 {[%clk 0:00:16]}  Nd8+ {[%clk 0:00:16]} 52. Kd7 {[%clk 0:00:16]}  Ne6 {[%clk 0:00:15]} 53. Kd6 {[%clk 0:00:13]}  Nd8 {[%clk 0:00:13]} 54. Kd7 {[%clk 0:00:12]}  Nb7 {[%clk 0:00:12]} 55. Kc7 {[%clk 0:00:11]}  Na5 {[%clk 0:00:12]} 56. Kd6 {[%clk 0:00:09]}  Nc4+ {[%clk 0:00:12]} 57. Kc5 {[%clk 0:00:07]}  Nxb6 {[%clk 0:00:13]} 58. Kxb6 {[%clk 0:00:07]}  Kg4 {[%clk 0:00:14]} 0-1


[Site "https://www.chess.com"]

[Event "Titled Tuesday Blitz March 07 Early 2023"]
[White "Garcia Ramos, Daniel"]
[Black "Pein, Jonathan"]
[WhiteFideId "32010311"]
[BlackFideId "417092"]
[WhiteElo "2341"]
[BlackElo "2151"]
[Result "1-0"]
[Round "03"]
[TimeControl "180+2"]
[Date "2023.03.07"]
[WhiteClock "0:00:27"]
[BlackClock "0:00:08"]

1. e4 {[%clk 0:03:00]}  e6 {[%clk 0:02:54]} 2. d4 {[%clk 0:03:00]}  d5 {[%clk 0:02:54]} 3. Nc3 {[%clk 0:03:00]}  Bb4 {[%clk 0:02:52]} 4. e5 {[%clk 0:02:57]}  c5 {[%clk 0:02:47]} 5. a3 {[%clk 0:02:57]}  Bxc3+ {[%clk 0:02:41]} 6. bxc3 {[%clk 0:02:58]}  Ne7 {[%clk 0:02:40]} 7. Qg4 {[%clk 0:02:54]}  Qa5 {[%clk 0:02:25]} 8. Bd2 {[%clk 0:02:53]}  Nbc6 {[%clk 0:02:16]} 9. Nf3 {[%clk 0:02:43]}  Ng6 {[%clk 0:02:07]} 10. h4 {[%clk 0:02:39]}  h5 {[%clk 0:01:54]} 11. Qg3 {[%clk 0:02:38]}  c4 {[%clk 0:01:48]} 12. Be2 {[%clk 0:02:34]}  Qa4 {[%clk 0:01:46]} 13. Bd1 {[%clk 0:02:32]}  Nce7 {[%clk 0:01:45]} 14. Ng5 {[%clk 0:02:31]}  Nf5 {[%clk 0:01:43]} 15. Qf3 {[%clk 0:02:31]}  Bd7 {[%clk 0:01:34]} 16. g3 {[%clk 0:02:29]}  a5 {[%clk 0:01:16]} 17. Qg2 {[%clk 0:02:00]}  Ra6 {[%clk 0:01:11]} 18. Bc1 {[%clk 0:01:16]}  Rb6 {[%clk 0:01:08]} 19. Qf3 {[%clk 0:00:59]}  Qc6 {[%clk 0:01:00]} 20. Qg2 {[%clk 0:00:56]}  Qa4 {[%clk 0:01:00]} 21. Qf3 {[%clk 0:00:56]}  Qc6 {[%clk 0:00:59]} 22. Kf1 {[%clk 0:00:56]}  Qc7 {[%clk 0:00:55]} 23. Qe2 {[%clk 0:00:54]}  Bb5 {[%clk 0:00:48]} 24. Kg2 {[%clk 0:00:53]}  Bc6 {[%clk 0:00:42]} 25. Qd2 {[%clk 0:00:52]}  a4 {[%clk 0:00:40]} 26. Nh3 {[%clk 0:00:52]}  Kd7 {[%clk 0:00:19]} 27. Qg5 {[%clk 0:00:51]}  Nxe5 {[%clk 0:00:13]} 28. dxe5 {[%clk 0:00:51]}  d4+ {[%clk 0:00:13]} 29. f3 {[%clk 0:00:48]}  Qxe5 {[%clk 0:00:13]} 30. Qf4 {[%clk 0:00:43]}  Qd5 {[%clk 0:00:12]} 31. Ng5 {[%clk 0:00:39]}  f6 {[%clk 0:00:11]} 32. Ne4 {[%clk 0:00:34]}  Ke7 {[%clk 0:00:09]} 33. Qc7+ {[%clk 0:00:31]}  Kf8 {[%clk 0:00:06]} 34. Qxb6 {[%clk 0:00:30]}  dxc3 {[%clk 0:00:07]} 35. Qc5+ {[%clk 0:00:30]}  Kf7 {[%clk 0:00:06]} 36. Qxd5 {[%clk 0:00:29]}  exd5 {[%clk 0:00:07]} 37. Nxc3 {[%clk 0:00:28]}  d4 {[%clk 0:00:08]} 38. Ne4 {[%clk 0:00:28]}  Re8 {[%clk 0:00:09]} 39. Be2 {[%clk 0:00:27]}  Bxe4 {[%clk 0:00:07]} 40. Bxc4+ {[%clk 0:00:27]}  Kg6 {[%clk 0:00:07]} 41. fxe4 {[%clk 0:00:27]}  Rxe4 {[%clk 0:00:08]} 42. Bd3 {[%clk 0:00:27]} 1-0


[Site "https://www.chess.com"]

[Event "Titled Tuesday Blitz March 07 Early 2023"]
[White "Shubenkova, Veronika"]
[Black "Kumaran, B"]
[WhiteFideId "44124040"]
[BlackFideId "5038472"]
[WhiteElo "2027"]
[BlackElo "2198"]
[Result "1-0"]
[Round "03"]
[TimeControl "180+2"]
[Date "2023.03.07"]
[WhiteClock "0:00:19"]
[BlackClock "0:00:25"]

1. e4 {[%clk 0:02:58]}  c5 {[%clk 0:02:59]} 2. Nc3 {[%clk 0:02:51]}  Nc6 {[%clk 0:02:58]} 3. g3 {[%clk 0:02:49]}  g6 {[%clk 0:02:58]} 4. Bg2 {[%clk 0:02:32]}  Bg7 {[%clk 0:02:57]} 5. d3 {[%clk 0:02:19]}  e6 {[%clk 0:02:52]} 6. f4 {[%clk 0:02:19]}  Nge7 {[%clk 0:02:50]} 7. Nf3 {[%clk 0:02:19]}  O-O {[%clk 0:02:49]} 8. O-O {[%clk 0:02:19]}  Nd4 {[%clk 0:02:47]} 9. Rb1 {[%clk 0:02:19]}  d5 {[%clk 0:02:35]} 10. e5 {[%clk 0:02:19]}  Nec6 {[%clk 0:02:34]} 11. Nxd4 {[%clk 0:02:17]}  Nxd4 {[%clk 0:02:32]} 12. Ne2 {[%clk 0:02:18]}  Nxe2+ {[%clk 0:02:30]} 13. Qxe2 {[%clk 0:02:19]}  b5 {[%clk 0:02:29]} 14. Be3 {[%clk 0:02:17]}  Qc7 {[%clk 0:02:27]} 15. g4 {[%clk 0:02:16]}  f6 {[%clk 0:02:25]} 16. exf6 {[%clk 0:02:13]}  Bxf6 {[%clk 0:02:24]} 17. f5 {[%clk 0:02:11]}  Kg7 {[%clk 0:02:10]} 18. fxe6 {[%clk 0:02:02]}  Bxe6 {[%clk 0:02:08]} 19. Bh6+ {[%clk 0:02:01]}  Kxh6 {[%clk 0:02:06]} 20. Qxe6 {[%clk 0:02:01]}  Be5 {[%clk 0:01:53]} 21. Qxd5 {[%clk 0:01:29]}  Bxh2+ {[%clk 0:01:49]} 22. Kh1 {[%clk 0:01:28]}  Rad8 {[%clk 0:01:35]} 23. Qe6 {[%clk 0:01:12]}  Bf4 {[%clk 0:01:29]} 24. Rf3 {[%clk 0:01:06]}  Rfe8 {[%clk 0:01:19]} 25. g5+ {[%clk 0:00:59]}  Bxg5 {[%clk 0:01:13]} 26. Qh3+ {[%clk 0:00:58]}  Kg7 {[%clk 0:01:13]} 27. Rbf1 {[%clk 0:00:58]}  Rf8 {[%clk 0:01:10]} 28. Qg4 {[%clk 0:00:51]}  Bf6 {[%clk 0:00:51]} 29. Rh3 {[%clk 0:00:44]}  Bxb2 {[%clk 0:00:45]} 30. Rg1 {[%clk 0:00:39]}  Bd4 {[%clk 0:00:43]} 31. Re1 {[%clk 0:00:27]}  Rf4 {[%clk 0:00:36]} 32. Qg5 {[%clk 0:00:25]}  Bf6 {[%clk 0:00:31]} 33. Qh6+ {[%clk 0:00:23]}  Kg8 {[%clk 0:00:29]} 34. Bd5+ {[%clk 0:00:20]}  Rxd5 {[%clk 0:00:25]} 35. Re8+ {[%clk 0:00:19]}  Kf7 {[%clk 0:00:25]} 36. Qf8# {[%clk 0:00:19]} 1-0


[Site "https://www.chess.com"]